Workbook

Sheet Summary
A1: Scan: Start with Multispec, Cosmic Signature
A3: System | B3: Quest Placement at Planet | H3: Launcher | I3: Astro | J3: Probe | K3: Range, AU | L3: Astro
A4: Agal | B4: 3 | C4: 5 | D4: 7 | E4: 8 | H4: Recon Probe Launcher I | I4: 2 | J4: Snoop Scanner Probe I | K4: 5 | L4: 1
A5: Apanake | B5: 1 | C5: 8 | D5: 9 | E5: 10 | H5: Sisters Recon Probe Launcher I | I5: 2 | J5: Fathom Scanner Probe I | K5: 10 | L5: 3
A6: Avyuh | B6: 1 | C6: 5 | J6: Spook Scanner Probe I | K6: 20 | L6: 4
A7: Bania | B7: 4 | C7: 6 | D7: 7 | J7: Ferret Scanner Probe I | K7: 40 | L7: 5
A8: Ebasez | B8: 3 | C8: 7 | D8: 8 | J8: Sisters Observator Deep Space Probe I | K8: 1000 | L8: 5
A9: Hadji | B9: 1 | C9: 6 | D9: 7 | E9: 8 | J9: Observator Deep Space Probe I | K9: 1000 | L9: 5
A10: Keseya | B10: 1 | C10: 7 | D10: 8 | E10: 9 | H10: Scan Probe Launcher I | I10: 1 | J10: Sift Probe | K10: 0.5 | L10: 4
A11: Nasreri | B11: 5 | C11: 6 | D11: 7 | E11: 8 | H11: Sisters Probe Launcher I | I11: 1 | J11: Comb Probe | K11: 1 | L11: 3
A12: Serren | B12: 1 | C12: 7 | D12: 8 | E12: 9 | J12: Pursuit Probe | K12: 2 | L12: 2
A13: Sheroo | B13: A (~7-5) | C13: 8 | D13: 9 | E13: 10 | F13: 11 | J13: Quest Probe | K13: 4 | L13: 1
A14: Sigga | B14: 1 | C14: 8 | D14: 9 | J14: Multispectral Frequency Probe | K14: 999 | L14: 1
A15: Sosh | B15: 3 | C15: 8 | D15: 9 | E15: 10 | H15: The "Quantitative" tab calculates how many scans it takes to achieve a probability of detection.
A16: Tarta | B16: 1 | C16: 9 | D16: 10 | E16: 11 | H16: Unknown | I16: Combat sites, can be found with any probe type
A17: Zoohen | B17: 1 | C17: 6 | D17: 7 | H17: Gravimetric | I17: Hidden asteroid belts
H18: Magnetometric | I18: Archaeology / Salvage profession sites
H19: RADAR | I19: Hacking profession sites
H20: LADAR | I20: Gas Cloud Sites

Sheet Quantitative
B2: Name | C2: Type | D2: Launcher/Probe | E2: Range, au | F2: Base Primary Sensor Strength, points | G2: Base Secondary Sensor Strength, points | H2: Net Primary Sensor Strength, points | I2: Net Secondary Sensor Strength, points | J2: Base Max Scan Deviation, km | K2: Net Max Scan Deviation, km | L2: Units | M2: Flight Time, sec | N2: Volume, m3 | O2: Capacity, m3 | P2: Base Cycle Time, Sec | Q2: Net Cycle Time, Sec | R2: Rate of Fire, Sec | S2: Loaded Probes | T2: CPU | U2: PG
B3: Snoop Scanner Probe I | C3: Ship | D3: Probe | E3: 5 | F3: 20 | G3: 0 | H3: =F3*(1+$E$23*$F$23) -> 23 | I3: =G3*(1+$E$23*$F$23) -> 0 | J3: 200 | K3: =J3*(1+$E$22*$F$22) -> 140 | L3: km | M3: 300 | N3: 0.025 | O3: 0 | P3: 0 | Q3: =P3*(1+$E$24*$F$24+$E$25*$F$25) -> 0 | R3: 0 | S3: =INT($O$16/$N3) -> 40 | T3: 0 | U3: 0 | V3: =B3 -> Snoop Scanner Probe I
B4: Fathom Scanner Probe I | C4: Ship | D4: Probe | E4: 10 | F4: 10 | G4: 0 | H4: 11.5 | I4: 0 | J4: 2500 | K4: 1750 | L4: km | M4: 600 | N4: 0.05 | O4: 0 | P4: 0 | Q4: 0 | R4: 0 | S4: 20 | T4: 0 | U4: 0 | V4: =B4 -> Fathom Scanner Probe I
B5: Spook Scanner Probe I | C5: Ship | D5: Probe | E5: 20 | F5: 5 | G5: 0 | H5: 5.75 | I5: 0 | J5: 50000 | K5: 35000 | L5: km | M5: 1200 | N5: 0.075 | O5: 0 | P5: 0 | Q5: 0 | R5: 0 | S5: 13 | T5: 0 | U5: 0 | V5: Spook Scanner Probe I
B6: Ferret Scanner Probe I | C6: Ship | D6: Probe | E6: 40 | F6: 2.5 | G6: 0 | H6: 2.875 | I6: 0 | J6: 10000 | K6: 7000 | L6: km | M6: 2400 | N6: 0.1 | O6: 0 | P6: 0 | Q6: 0 | R6: 0 | S6: 10 | T6: 0 | U6: 0 | V6: Ferret Scanner Probe I
B7: Sisters Observator Deep Space Probe I | C7: Ship | D7: Probe | E7: 1000 | F7: 1.4 | G7: 0 | H7: 1.61 | I7: 0 | J7: 20000 | K7: 14000 | L7: km | M7: 4800 | N7: 0.1 | O7: 0 | P7: 0 | Q7: 0 | R7: 0 | S7: 10 | T7: 0 | U7: 0 | V7: Sisters Observator Deep Space Probe I
B8: Observator Deep Space Probe I | C8: Ship | D8: Probe | E8: 1000 | F8: 1.25 | G8: 0 | H8: 1.4375 | I8: 0 | J8: 20000 | K8: 14000 | L8: km | M8: 4800 | N8: 0.125 | O8: 0 | P8: 0 | Q8: 0 | R8: 0 | S8: 8 | T8: 0 | U8: 0 | V8: Observator Deep Space Probe I
B9: Sift Probe | C9: Exploration | D9: Probe | E9: 0.5 | F9: 2000 | G9: 400 | H9: 2300 | I9: 460 | J9: 2500 | K9: 1750 | L9: km | M9: 500 | N9: 1.25 | O9: 0 | P9: 0 | Q9: 0 | R9: 0 | S9: =INT($O$14/$N9) -> 8 | T9: 0 | U9: 0 | V9: Sift Probe
B10: Comb Probe | C10: Exploration | D10: Probe | E10: 1 | F10: 1000 | G10: 200 | H10: 1150 | I10: 230 | J10: 125000 | K10: 87500 | L10: km | M10: 1000 | N10: 1.25 | O10: 0 | P10: 0 | Q10: 0 | R10: 0 | S10: =INT($O$14/$N10) -> 8 | T10: 0 | U10: 0 | V10: Comb Probe
B11: Pursuit Probe | C11: Exploration | D11: Probe | E11: 2 | F11: 500 | G11: 100 | H11: 575 | I11: 115 | J11: 6250000 | K11: 4375000 | L11: km | M11: 2000 | N11: 1.25 | O11: 0 | P11: 0 | Q11: 0 | R11: 0 | S11: =INT($O$14/$N11) -> 8 | T11: 0 | U11: 0 | V11: Pursuit Probe
B12: Quest Probe | C12: Exploration | D12: Probe | E12: 4 | F12: 250 | G12: 50 | H12: 287.5 | I12: 57.5 | J12: 2.088 | K12: 1.4616 | L12: au | M12: 4000 | N12: 1.25 | O12: 0 | P12: 0 | Q12: 0 | R12: 0 | S12: =INT($O$14/$N12) -> 8 | T12: 0 | U12: 0 | V12: Quest Probe
B13: Multispectral Frequency Probe | C13: Exploration | D13: Probe | E13: 999 | F13: 1000000 | G13: 1000000 | H13: 1150000 | I13: 1150000 | J13: 0 | K13: 0 | L13: - | M13: 600 | N13: 1.25 | O13: 0 | P13: 0 | Q13: 0 | R13: 0 | S13: =INT($O$14/$N13) -> 8 | T13: 0 | U13: 0 | V13: Multispectral Frequency Probe
B14: Scan Probe Launcher I | C14: Exploration | D14: Launcher | E14: 0 | F14: 0 | G14: 0 | H14: 0 | I14: 0 | J14: 0 | K14: 0 | L14: - | M14: 0 | N14: 0 | O14: 10 | P14: 600 | Q14: =P14*(1+$E$24*$F$24)*(1+$E$25*$F$25)*(1+$F$26)^$E$26 -> 174.96 | R14: 15 | S14: 0 | T14: 220 | U14: 1
B15: Sisters Probe Launcher I | C15: Exploration | D15: Launcher | E15: 0 | F15: 0 | G15: 0 | H15: 0 | I15: 0 | J15: 0 | K15: 0 | L15: - | M15: 0 | N15: 0 | O15: 10 | P15: 450 | Q15: =P15*(1+$E$24*$F$24)*(1+$E$25*$F$25)*(1+$F$26)^$E$26 -> 131.22 | R15: 15 | S15: 0
B16: Recon Probe Launcher I | C16: Ship | D16: Launcher | E16: 0 | F16: 0 | G16: 0 | H16: 0 | I16: 0 | J16: 0 | K16: 0 | L16: - | M16: 0 | N16: 0 | O16: 1 | P16: 120 | Q16: 34.992 | R16: 2.5 | S16: 0 | T16: 220 | U16: 2
B17: Sisters Recon Probe Launcher I | C17: Ship | D17: Launcher | E17: 0 | F17: 0 | G17: 0 | H17: 0 | I17: 0 | J17: 0 | K17: 0 | L17: - | M17: 0 | N17: 0 | O17: 1 | P17: 120 | Q17: 34.992 | R17: 2.5 | S17: 0
E20: Skill Lvl/Qty | F20: Per Level
B21: Astrometrics | E21: 5 | F21: 1 | G21: Number of Scan Groups | K21: Implements Hoshi's article
B22: Astrometric Pinpointing | E22: 3 | F22: -0.1 | G22: Scan Deviation
B23: Astrometric Triangulation | E23: 3 | F23: 0.05 | G23: Scan Strength
B24: Signal Acquisition | E24: 4 | F24: -0.1 | G24: Scan Time
B25: Covert Ops Frigate | E25: 4 | F25: -0.1 | G25: Scan Time
B26: Gravity Capacitor Upgrade Rig | E26: 2 | F26: -0.1 | G26: Scan Time
F29: =EXP(-((F31/E38)^2)) -> 0.9997750253 | H29: Range Multiplier
B30: Target | F30: =149597870.691 -> 149597870.7 | G30: km | H30: Astronomical Unit
B31: Range | C31: 15 | D31: au | E31: "au" or "km" | F31: =IF(D31="au",MAX(C31,IF(L38="km",K38/F30,K38)),MAX(C31/F30,IF(L38="km",K38/F30,K38))) -> 15 | G31: au
B32: Signature Radius | C32: 480 | F32: =IF(D31="km",MAX(C31,IF(L38="au",K38*F30,K38)),MAX(C31*F30,IF(L38="au",K38,K38/F30))) -> 2243968060 | G32: km
B33: Sensor Strength | C33: 24
B34: Signal Size | C34: =C32/C33 -> 20
B37: Probe
B38: Observator Deep Space Probe I | C38: =[1]!dbvfind($B38,$B$3:$U$17,COLUMN(C38)-COLUMN($B38)+1) -> Ship | D38: =[1]!dbvfind($B38,$B$3:$U$17,COLUMN(D38)-COLUMN($B38)+1) -> Probe | E38: =[1]!dbvfind($B38,$B$3:$U$17,COLUMN(E38)-COLUMN($B38)+1) -> 1000 | F38: =[1]!dbvfind($B38,$B$3:$U$17,COLUMN(F38)-COLUMN($B38)+1) -> 1.25 | G38: =[1]!dbvfind($B38,$B$3:$U$17,COLUMN(G38)-COLUMN($B38)+1) -> 0 | H38: =[1]!dbvfind($B38,$B$3:$U$17,COLUMN(H38)-COLUMN($B38)+1) -> 1.4375 | I38: =[1]!dbvfind($B38,$B$3:$U$17,COLUMN(I38)-COLUMN($B38)+1) -> 0 | J38: =[1]!dbvfind($B38,$B$3:$U$17,COLUMN(J38)-COLUMN($B38)+1) -> 20000 | K38: =[1]!dbvfind($B38,$B$3:$U$17,COLUMN(K38)-COLUMN($B38)+1) -> 14000 | L38: =[1]!dbvfind($B38,$B$3:$U$17,COLUMN(L38)-COLUMN($B38)+1) -> km | M38: =[1]!dbvfind($B38,$B$3:$U$17,COLUMN(M38)-COLUMN($B38)+1) -> 4800 | N38: =[1]!dbvfind($B38,$B$3:$U$17,COLUMN(N38)-COLUMN($B38)+1) -> 0.125 | O38: =[1]!dbvfind($B38,$B$3:$U$17,COLUMN(O38)-COLUMN($B38)+1) -> 0 | P38: =[1]!dbvfind($B38,$B$3:$U$17,COLUMN(P38)-COLUMN($B38)+1) -> 0 | Q38: =[1]!dbvfind($B38,$B$3:$U$17,COLUMN(Q38)-COLUMN($B38)+1) -> 0 | R38: =[1]!dbvfind($B38,$B$3:$U$17,COLUMN(R38)-COLUMN($B38)+1) -> 0 | S38: =[1]!dbvfind($B38,$B$3:$U$17,COLUMN(S38)-COLUMN($B38)+1) -> 8 | T38: =[1]!dbvfind($B38,$B$3:$U$17,COLUMN(T38)-COLUMN($B38)+1) -> 0 | U38: =[1]!dbvfind($B38,$B$3:$U$17,COLUMN(U38)-COLUMN($B38)+1) -> 0
B39: Range | C39: =E38 -> 1000 | D39: au
B41: Launcher
B42: Recon Probe Launcher I | C42: =[1]!dbvfind($B42,$B$3:$U$17,COLUMN(C42)-COLUMN($B42)+1) -> Ship | D42: =[1]!dbvfind($B42,$B$3:$U$17,COLUMN(D42)-COLUMN($B42)+1) -> Launcher | E42: =[1]!dbvfind($B42,$B$3:$U$17,COLUMN(E42)-COLUMN($B42)+1) -> 0 | F42: =[1]!dbvfind($B42,$B$3:$U$17,COLUMN(F42)-COLUMN($B42)+1) -> 0 | G42: =[1]!dbvfind($B42,$B$3:$U$17,COLUMN(G42)-COLUMN($B42)+1) -> 0 | H42: =[1]!dbvfind($B42,$B$3:$U$17,COLUMN(H42)-COLUMN($B42)+1) -> 0 | I42: =[1]!dbvfind($B42,$B$3:$U$17,COLUMN(I42)-COLUMN($B42)+1) -> 0 | J42: =[1]!dbvfind($B42,$B$3:$U$17,COLUMN(J42)-COLUMN($B42)+1) -> 0 | K42: =[1]!dbvfind($B42,$B$3:$U$17,COLUMN(K42)-COLUMN($B42)+1) -> 0 | L42: =[1]!dbvfind($B42,$B$3:$U$17,COLUMN(L42)-COLUMN($B42)+1) -> - | M42: =[1]!dbvfind($B42,$B$3:$U$17,COLUMN(M42)-COLUMN($B42)+1) -> 0 | N42: =[1]!dbvfind($B42,$B$3:$U$17,COLUMN(N42)-COLUMN($B42)+1) -> 0 | O42: =[1]!dbvfind($B42,$B$3:$U$17,COLUMN(O42)-COLUMN($B42)+1) -> 1 | P42: =[1]!dbvfind($B42,$B$3:$U$17,COLUMN(P42)-COLUMN($B42)+1) -> 120 | Q42: =[1]!dbvfind($B42,$B$3:$U$17,COLUMN(Q42)-COLUMN($B42)+1) -> 34.992 | R42: =[1]!dbvfind($B42,$B$3:$U$17,COLUMN(R42)-COLUMN($B42)+1) -> 2.5 | S42: =[1]!dbvfind($B42,$B$3:$U$17,COLUMN(S42)-COLUMN($B42)+1) -> 0 | T42: =[1]!dbvfind($B42,$B$3:$U$17,COLUMN(T42)-COLUMN($B42)+1) -> 220 | U42: =[1]!dbvfind($B42,$B$3:$U$17,COLUMN(U42)-COLUMN($B42)+1) -> 2
B43: Scan Time | C43: =E52*$Q$42/(24*60*60) -> 0.000405 | D43: hh:mm:ss
B46: Scan Result
B47: Signal Strength | E47: =MIN(1,(H38/100)*F29*C34) -> 0.2874353198 | F47: Chance it will show each scan
B48: Max Effective Scan Deviation (approx) | E48: =J38*((0.6*(E47^2))-(1.6*E47)+1)*(1+$E$22*$F$22) -> 8255.448967 | F48: km | H48: Grid Dimension | I48: 400 | J48: km | K48: =IF($E$48>0,(1^2)/ROUNDUP($E$48/$I$48,0)^2,1) -> 0.002267573696 | L48: Probablility Any Scan Result Is In Same Grid
B49: Start with Probe type: | E49: =IF(C42="Exploration",B13,B8) -> Observator Deep Space Probe I
B50: Enter Probed Scan Dev in Target Range above, then Next Probe: | E50: =IF(C42="Ship",dbvfindlocal($F$32/$F$30,$E$3:$V$8,18),dbvfindlocal($F$32/$F$30,$E$9:$V$13,18)) -> Spook Scanner Probe I
B52: Number of Scans | E52: 1 | F52: 2 | G52: 3 | H52: 4 | I52: 5 | J52: 6 | K52: 7
B53: P(Will Show) | E53: =1-(1-$E$47)^E52 -> 0.2874353198 | F53: 0.4922515765 | G53: 0.638196407 | H53: 0.7421915384 | I53: 0.816294796 | J53: 0.8690981601 | K53: 0.9067239723
B54: Total Scan Time, hh:mm:ss | E54: =E52*$Q$42/(24*60*60) -> 0.000405 | F54: 0.00081 | G54: 0.001215 | H54: 0.00162 | I54: 0.002025 | J54: 0.00243 | K54: 0.002835 | M54: Red means probe flight time is exceeded
B56: P(will show) | E56: 0.5 | F56: 0.6 | G56: 0.7 | H56: 0.8 | I56: 0.9
B57: Scans Required | E57: =IF($E$47<1,ROUNDUP(LN(1-E56)/LN(1-$E$47),0),1) -> 3 | F57: =IF($E$47<1,ROUNDUP(LN(1-F56)/LN(1-$E$47),0),1) -> 3 | G57: 4 | H57: 5 | I57: 7
B58: Total Scan Time, hh:mm:ss | E58: =E57*$Q$42/(24*60*60) -> 0.001215 | F58: =F57*$Q$42/(24*60*60) -> 0.001215 | G58: =G57*$Q$42/(24*60*60) -> 0.00162 | H58: =H57*$Q$42/(24*60*60) -> 0.002025 | I58: =I57*$Q$42/(24*60*60) -> 0.002835
E63: Unknown | F63: Combat sites, can be found with any probe type
E64: Gravimetric | F64: Hidden asteroid belts
E65: Magnetometric | F65: Archaeology / Salvage profession sites
E66: RADAR | F66: Hacking profession sites
E67: LADAR | F67: Gas Cloud Sites

Sheet Sheet2

Sheet Sheet3
